[Event "Titled Tuesday Blitz March 21 Early 2023"]
[White "Bolourchifard, Farzad"]
[Black "Nogerbek, Kazybek"]
[WhiteFideId "12510084"]
[BlackFideId "13710427"]
[WhiteElo "2317"]
[BlackElo "2501"]
[Result "1-0"]
[Round "05"]
[TimeControl "180+2"]
[Date "2023.03.21"]
[WhiteClock "0:00:16"]
[BlackClock "0:00:01"]

1. e4 {[%clk 0:03:00]}  g6 {[%clk 0:01:42]} 2. Nc3 {[%clk 0:03:00]}  Nf6 {[%clk 0:01:42]} 3. d4 {[%clk 0:02:58]}  d5 {[%clk 0:01:42]} 4. e5 {[%clk 0:02:58]}  Ne4 {[%clk 0:01:42]} 5. Bd3 {[%clk 0:02:58]}  Nxc3 {[%clk 0:01:42]} 6. bxc3 {[%clk 0:02:58]}  c5 {[%clk 0:01:43]} 7. h4 {[%clk 0:02:58]}  h5 {[%clk 0:01:37]} 8. Nf3 {[%clk 0:02:58]}  Bg4 {[%clk 0:01:36]} 9. Bg5 {[%clk 0:02:42]}  Nc6 {[%clk 0:01:19]} 10. Bb5 {[%clk 0:02:32]}  Qa5 {[%clk 0:01:11]} 11. Bxc6+ {[%clk 0:02:33]}  bxc6 {[%clk 0:01:12]} 12. Qd3 {[%clk 0:02:31]}  Bxf3 {[%clk 0:00:49]} 13. Qxf3 {[%clk 0:01:40]}  cxd4 {[%clk 0:00:45]} 14. Bd2 {[%clk 0:01:35]}  e6 {[%clk 0:00:25]} 15. cxd4 {[%clk 0:01:31]}  Qb5 {[%clk 0:00:19]} 16. Qf6 {[%clk 0:01:29]}  Rg8 {[%clk 0:00:19]} 17. Rh3 {[%clk 0:01:15]}  Be7 {[%clk 0:00:17]} 18. Qf4 {[%clk 0:01:13]}  c5 {[%clk 0:00:14]} 19. Rb3 {[%clk 0:01:12]}  Qc4 {[%clk 0:00:14]} 20. c3 {[%clk 0:01:05]}  g5 {[%clk 0:00:12]} 21. Qf3 {[%clk 0:00:46]}  cxd4 {[%clk 0:00:08]} 22. Rab1 {[%clk 0:00:43]}  Rd8 {[%clk 0:00:06]} 23. hxg5 {[%clk 0:00:37]}  dxc3 {[%clk 0:00:05]} 24. Qxc3 {[%clk 0:00:35]}  Qe4+ {[%clk 0:00:05]} 25. Kf1 {[%clk 0:00:34]}  h4 {[%clk 0:00:05]} 26. Rb7 {[%clk 0:00:32]}  Kf8 {[%clk 0:00:06]} 27. Re1 {[%clk 0:00:18]}  Qc4+ {[%clk 0:00:05]} 28. Qxc4 {[%clk 0:00:19]}  dxc4 {[%clk 0:00:06]} 29. Ba5 {[%clk 0:00:18]}  Rd5 {[%clk 0:00:05]} 30. Bc3 {[%clk 0:00:18]}  Rxg5 {[%clk 0:00:06]} 31. Rb8+ {[%clk 0:00:17]}  Kg7 {[%clk 0:00:05]} 32. Re4 {[%clk 0:00:16]}  Rf5 {[%clk 0:00:02]} 33. Rg4+ {[%clk 0:00:16]}  Kh7 {[%clk 0:00:02]} 34. Rb7 {[%clk 0:00:14]}  Bc5 {[%clk 0:00:02]} 35. f3 {[%clk 0:00:15]}  Rd3 {[%clk 0:00:02]} 36. Rxh4+ {[%clk 0:00:15]}  Kg7 {[%clk 0:00:02]} 37. Rg4+ {[%clk 0:00:15]}  Kh7 {[%clk 0:00:02]} 38. Rxc4 {[%clk 0:00:16]}  Be3 {[%clk 0:00:02]} 39. Ke2 {[%clk 0:00:15]}  Rxc3 {[%clk 0:00:02]} 40. Rxc3 {[%clk 0:00:15]}  Bd4 {[%clk 0:00:03]} 41. Rc4 {[%clk 0:00:15]}  Rxe5+ {[%clk 0:00:03]} 42. Kf1 {[%clk 0:00:16]}  Bb6 {[%clk 0:00:03]} 43. Rxf7+ {[%clk 0:00:15]}  Kg6 {[%clk 0:00:03]} 44. Rff4 {[%clk 0:00:15]}  Ra5 {[%clk 0:00:03]} 45. a4 {[%clk 0:00:15]}  Rd5 {[%clk 0:00:04]} 46. Rg4+ {[%clk 0:00:14]}  Kf6 {[%clk 0:00:04]} 47. Rcf4+ {[%clk 0:00:14]}  Ke7 {[%clk 0:00:05]} 48. Re4 {[%clk 0:00:15]}  Kd6 {[%clk 0:00:05]} 49. Rg6 {[%clk 0:00:15]}  Rd2 {[%clk 0:00:04]} 50. Rgxe6+ {[%clk 0:00:15]}  Kd5 {[%clk 0:00:05]} 51. R4e5+ {[%clk 0:00:15]}  Kc4 {[%clk 0:00:04]} 52. Re4+ {[%clk 0:00:16]}  Kb3 {[%clk 0:00:02]} 53. Rxb6+ {[%clk 0:00:15]}  axb6 {[%clk 0:00:02]} 54. g4 {[%clk 0:00:16]}  b5 {[%clk 0:00:01]} 55. axb5 {[%clk 0:00:16]} 1-0


[Site "https://www.chess.com"]

[Event "Titled Tuesday Blitz March 21 Early 2023"]
[White "Costachi, Mihnea"]
[Black "Mindlin, Alon"]
[WhiteFideId "1217518"]
[BlackFideId "2800071"]
[WhiteElo "2456"]
[BlackElo "2430"]
[Result "1-0"]
[Round "05"]
[TimeControl "180+2"]
[Date "2023.03.21"]
[WhiteClock "0:00:52"]
[BlackClock "0:00:05"]

1. Nc3 {[%clk 0:03:00]}  Nf6 {[%clk 0:02:59]} 2. e4 {[%clk 0:03:00]}  e5 {[%clk 0:02:56]} 3. Bc4 {[%clk 0:02:59]}  c6 {[%clk 0:02:56]} 4. Nf3 {[%clk 0:02:56]}  d5 {[%clk 0:02:51]} 5. exd5 {[%clk 0:02:56]}  cxd5 {[%clk 0:02:51]} 6. Bb5+ {[%clk 0:02:56]}  Bd7 {[%clk 0:02:50]} 7. Nxe5 {[%clk 0:02:53]}  Bxb5 {[%clk 0:02:37]} 8. Nxb5 {[%clk 0:02:52]}  a6 {[%clk 0:02:37]} 9. Nd4 {[%clk 0:02:47]}  Bd6 {[%clk 0:02:29]} 10. Ndf3 {[%clk 0:02:46]}  O-O {[%clk 0:02:13]} 11. O-O {[%clk 0:02:46]}  Nc6 {[%clk 0:02:06]} 12. Nxc6 {[%clk 0:02:42]}  bxc6 {[%clk 0:02:06]} 13. d3 {[%clk 0:02:42]}  h6 {[%clk 0:02:02]} 14. b3 {[%clk 0:02:40]}  Nh5 {[%clk 0:01:58]} 15. Bb2 {[%clk 0:02:32]}  Nf4 {[%clk 0:01:57]} 16. g3 {[%clk 0:02:31]}  Ne6 {[%clk 0:01:53]} 17. Nd4 {[%clk 0:02:27]}  c5 {[%clk 0:01:19]} 18. Nf5 {[%clk 0:02:18]}  Kh7 {[%clk 0:01:14]} 19. Qg4 {[%clk 0:02:13]}  g6 {[%clk 0:01:07]} 20. Nxh6 {[%clk 0:02:05]}  f5 {[%clk 0:01:03]} 21. Qe2 {[%clk 0:01:53]}  Nd4 {[%clk 0:00:55]} 22. Bxd4 {[%clk 0:01:39]}  cxd4 {[%clk 0:00:55]} 23. Qd2 {[%clk 0:01:20]}  g5 {[%clk 0:00:55]} 24. Rae1 {[%clk 0:01:15]}  Kxh6 {[%clk 0:00:54]} 25. Re6+ {[%clk 0:01:15]}  Rf6 {[%clk 0:00:53]} 26. Rfe1 {[%clk 0:01:16]}  Rxe6 {[%clk 0:00:36]} 27. Rxe6+ {[%clk 0:01:15]}  Kg7 {[%clk 0:00:36]} 28. c4 {[%clk 0:01:08]}  dxc3 {[%clk 0:00:11]} 29. Qxc3+ {[%clk 0:01:08]}  Kf7 {[%clk 0:00:12]} 30. Rh6 {[%clk 0:01:07]}  Rc8 {[%clk 0:00:12]} 31. Rh7+ {[%clk 0:01:05]}  Ke6 {[%clk 0:00:12]} 32. Qe1+ {[%clk 0:00:52]}  Kf6 {[%clk 0:00:12]} 33. Rh6+ {[%clk 0:00:52]}  Kg7 {[%clk 0:00:12]} 34. Qe6 {[%clk 0:00:53]}  Qe8 {[%clk 0:00:05]} 35. Qf6+ {[%clk 0:00:52]} 1-0


[Site "https://www.chess.com"]

[Event "Titled Tuesday Blitz March 21 Early 2023"]
[White "Svane, Frederik"]
[Black "Skvortsov, Andrei"]
[WhiteFideId "12923044"]
[BlackFideId "24108600"]
[WhiteElo "2502"]
[BlackElo "2259"]
[Result "1/2-1/2"]
[Round "05"]
[TimeControl "180+2"]
[Date "2023.03.21"]
[WhiteClock "0:00:07"]
[BlackClock "0:00:08"]

1. b3 {[%clk 0:03:00]}  e5 {[%clk 0:02:53]} 2. Bb2 {[%clk 0:03:01]}  Nc6 {[%clk 0:02:53]} 3. e3 {[%clk 0:03:02]}  Nge7 {[%clk 0:02:53]} 4. c4 {[%clk 0:03:02]}  d5 {[%clk 0:02:49]} 5. cxd5 {[%clk 0:02:59]}  Nxd5 {[%clk 0:02:48]} 6. a3 {[%clk 0:02:47]}  a6 {[%clk 0:02:46]} 7. Qc2 {[%clk 0:02:46]}  Be6 {[%clk 0:02:41]} 8. Nf3 {[%clk 0:02:46]}  Bd6 {[%clk 0:02:38]} 9. Nc3 {[%clk 0:02:41]}  Nxc3 {[%clk 0:02:32]} 10. Bxc3 {[%clk 0:02:41]}  Qe7 {[%clk 0:02:31]} 11. Bd3 {[%clk 0:02:39]}  Bd5 {[%clk 0:02:05]} 12. Be4 {[%clk 0:02:16]}  Bxe4 {[%clk 0:02:04]} 13. Qxe4 {[%clk 0:02:17]}  O-O {[%clk 0:01:46]} 14. b4 {[%clk 0:02:14]}  f5 {[%clk 0:01:40]} 15. Qc4+ {[%clk 0:02:14]}  Kh8 {[%clk 0:01:40]} 16. e4 {[%clk 0:02:13]}  fxe4 {[%clk 0:01:37]} 17. Qxe4 {[%clk 0:02:14]}  Rf4 {[%clk 0:01:37]} 18. Qe2 {[%clk 0:02:05]}  e4 {[%clk 0:01:35]} 19. Nd4 {[%clk 0:02:06]}  Ne5 {[%clk 0:01:13]} 20. O-O {[%clk 0:02:06]}  Raf8 {[%clk 0:01:08]} 21. Rae1 {[%clk 0:02:01]}  Rh4 {[%clk 0:00:45]} 22. g3 {[%clk 0:01:56]}  Qg5 {[%clk 0:00:17]} 23. f4 {[%clk 0:01:31]}  exf3 {[%clk 0:00:14]} 24. Nxf3 {[%clk 0:01:29]}  Nxf3+ {[%clk 0:00:14]} 25. Rxf3 {[%clk 0:01:29]}  Rhf4 {[%clk 0:00:14]} 26. Rxf4 {[%clk 0:01:24]}  Bxf4 {[%clk 0:00:13]} 27. Rf1 {[%clk 0:01:19]}  Bd6 {[%clk 0:00:09]} 28. Rxf8+ {[%clk 0:01:19]}  Bxf8 {[%clk 0:00:10]} 29. Qe8 {[%clk 0:01:20]}  Qe7 {[%clk 0:00:10]} 30. Qh5 {[%clk 0:01:13]}  c6 {[%clk 0:00:10]} 31. Kg2 {[%clk 0:01:11]}  Kg8 {[%clk 0:00:10]} 32. Qf3 {[%clk 0:01:11]}  Qf7 {[%clk 0:00:10]} 33. Qe4 {[%clk 0:01:06]}  g6 {[%clk 0:00:09]} 34. a4 {[%clk 0:01:04]}  Qd5 {[%clk 0:00:09]} 35. Kf3 {[%clk 0:01:04]}  Kf7 {[%clk 0:00:09]} 36. g4 {[%clk 0:00:49]}  Bd6 {[%clk 0:00:08]} 37. h3 {[%clk 0:00:48]}  Qxe4+ {[%clk 0:00:04]} 38. Kxe4 {[%clk 0:00:49]}  Ke6 {[%clk 0:00:05]} 39. d3 {[%clk 0:00:46]}  h5 {[%clk 0:00:05]} 40. gxh5 {[%clk 0:00:43]}  gxh5 {[%clk 0:00:06]} 41. Bd2 {[%clk 0:00:44]}  Be7 {[%clk 0:00:06]} 42. Kf4 {[%clk 0:00:41]}  Bf6 {[%clk 0:00:04]} 43. Ke4 {[%clk 0:00:34]}  Be7 {[%clk 0:00:04]} 44. Bc3 {[%clk 0:00:35]}  Bg5 {[%clk 0:00:04]} 45. Be1 {[%clk 0:00:32]}  b5 {[%clk 0:00:04]} 46. axb5 {[%clk 0:00:29]}  axb5 {[%clk 0:00:04]} 47. Kd4 {[%clk 0:00:28]}  Be7 {[%clk 0:00:03]} 48. Ke4 {[%clk 0:00:27]}  Bg5 {[%clk 0:00:03]} 49. Bf2 {[%clk 0:00:24]}  Be7 {[%clk 0:00:04]} 50. Be1 {[%clk 0:00:25]}  Bf6 {[%clk 0:00:04]} 51. Bd2 {[%clk 0:00:18]}  Be7 {[%clk 0:00:05]} 52. Bc3 {[%clk 0:00:18]}  Bd6 {[%clk 0:00:05]} 53. d4 {[%clk 0:00:15]}  Be7 {[%clk 0:00:05]} 54. Be1 {[%clk 0:00:15]}  Bd6 {[%clk 0:00:05]} 55. Bd2 {[%clk 0:00:15]}  Be7 {[%clk 0:00:05]} 56. Bc3 {[%clk 0:00:14]}  Bd6 {[%clk 0:00:05]} 57. Be1 {[%clk 0:00:14]}  Be7 {[%clk 0:00:06]} 58. Bd2 {[%clk 0:00:14]}  Bd6 {[%clk 0:00:06]} 59. Be1 {[%clk 0:00:11]}  Be7 {[%clk 0:00:06]} 60. Bc3 {[%clk 0:00:07]}  Bd6 {[%clk 0:00:06]} 61. Bd2 {[%clk 0:00:07]}  Be7 {[%clk 0:00:07]} 62. Be1 {[%clk 0:00:05]}  Bd6 {[%clk 0:00:07]} 63. Bc3 {[%clk 0:00:06]}  Be7 {[%clk 0:00:07]} 64. Bd2 {[%clk 0:00:06]}  Bd6 {[%clk 0:00:08]} 65. Be1 {[%clk 0:00:07]} 1/2-1/2


[Site "https://www.chess.com"]

[Event "Titled Tuesday Blitz March 21 Early 2023"]
[White "Domingo Nunez, Ruben"]
[Black "Gharibyan, Mamikon"]
[WhiteFideId "22245570"]
[BlackFideId "13308300"]
[WhiteElo "2404"]
[BlackElo "2445"]
[Result "0-1"]
[Round "05"]
[TimeControl "180+2"]
[Date "2023.03.21"]
[WhiteClock "0:01:20"]
[BlackClock "0:01:02"]

1. b3 {[%clk 0:02:58]}  g6 {[%clk 0:03:00]} 2. Bb2 {[%clk 0:02:59]}  Nf6 {[%clk 0:03:00]} 3. Nf3 {[%clk 0:02:58]}  Bg7 {[%clk 0:03:00]} 4. g3 {[%clk 0:02:58]}  O-O {[%clk 0:02:46]} 5. Bg2 {[%clk 0:02:58]}  d6 {[%clk 0:02:46]} 6. d4 {[%clk 0:02:59]}  Nc6 {[%clk 0:02:45]} 7. O-O {[%clk 0:02:58]}  a5 {[%clk 0:02:36]} 8. Nc3 {[%clk 0:02:56]}  Bf5 {[%clk 0:02:32]} 9. Nh4 {[%clk 0:02:55]}  Bd7 {[%clk 0:02:28]} 10. d5 {[%clk 0:02:48]}  Nb4 {[%clk 0:02:27]} 11. a3 {[%clk 0:02:45]}  Na6 {[%clk 0:02:23]} 12. e4 {[%clk 0:02:43]}  c6 {[%clk 0:02:16]} 13. Re1 {[%clk 0:02:40]}  Nc5 {[%clk 0:02:11]} 14. Rb1 {[%clk 0:02:30]}  Rc8 {[%clk 0:02:06]} 15. h3 {[%clk 0:02:26]}  b5 {[%clk 0:02:02]} 16. e5 {[%clk 0:02:22]}  dxe5 {[%clk 0:01:52]} 17. dxc6 {[%clk 0:02:21]}  Bxc6 {[%clk 0:01:47]} 18. Bxc6 {[%clk 0:02:20]}  Rxc6 {[%clk 0:01:48]} 19. Rxe5 {[%clk 0:02:04]}  Qc8 {[%clk 0:01:39]} 20. Kh2 {[%clk 0:01:39]}  Ng4+ {[%clk 0:01:27]} 21. hxg4 {[%clk 0:01:40]}  Bxe5 {[%clk 0:01:26]} 22. Nxb5 {[%clk 0:01:41]}  Bxb2 {[%clk 0:01:22]} 23. Rxb2 {[%clk 0:01:42]}  Rd8 {[%clk 0:01:16]} 24. Qe2 {[%clk 0:01:42]}  Re6 {[%clk 0:01:15]} 25. Qc4 {[%clk 0:01:25]}  Rd2 {[%clk 0:01:13]} 26. b4 {[%clk 0:01:23]}  axb4 {[%clk 0:01:14]} 27. axb4 {[%clk 0:01:23]}  Rxf2+ {[%clk 0:01:06]} 28. Kg1 {[%clk 0:01:23]}  Re1+ {[%clk 0:01:03]} 29. Kxf2 {[%clk 0:01:23]}  Ne4+ {[%clk 0:01:03]} 30. Kxe1 {[%clk 0:01:20]}  Qxc4 {[%clk 0:01:02]} 0-1


[Site "https://www.chess.com"]

[Event "Titled Tuesday Blitz March 21 Early 2023"]
[White "Safin, Robert"]
[Black "Kobo, Ori"]
[WhiteFideId "34189120"]
[BlackFideId "2812320"]
[WhiteElo "2245"]
[BlackElo "2447"]
[Result "0-1"]
[Round "05"]
[TimeControl "180+2"]
[Date "2023.03.21"]
[WhiteClock "0:00:01"]
[BlackClock "0:00:17"]

1. e4 {[%clk 0:03:00]}  c5 {[%clk 0:02:59]} 2. c3 {[%clk 0:03:00]}  d5 {[%clk 0:02:58]} 3. exd5 {[%clk 0:03:00]}  Nf6 {[%clk 0:02:58]} 4. Nf3 {[%clk 0:02:45]}  Nxd5 {[%clk 0:02:57]} 5. d4 {[%clk 0:02:40]}  e6 {[%clk 0:02:57]} 6. Bd3 {[%clk 0:02:36]}  cxd4 {[%clk 0:02:43]} 7. Nxd4 {[%clk 0:02:35]}  Be7 {[%clk 0:02:44]} 8. O-O {[%clk 0:02:33]}  O-O {[%clk 0:02:43]} 9. Nd2 {[%clk 0:02:30]}  b6 {[%clk 0:02:38]} 10. N2f3 {[%clk 0:02:24]}  Bb7 {[%clk 0:02:38]} 11. Qe2 {[%clk 0:02:24]}  Nd7 {[%clk 0:02:32]} 12. Re1 {[%clk 0:02:21]}  Nc5 {[%clk 0:02:22]} 13. Bc2 {[%clk 0:02:20]}  Ba6 {[%clk 0:02:14]} 14. c4 {[%clk 0:02:01]}  Qc7 {[%clk 0:02:00]} 15. b3 {[%clk 0:01:16]}  Nf4 {[%clk 0:01:55]} 16. Qe3 {[%clk 0:01:10]}  Ng6 {[%clk 0:01:54]} 17. Bb2 {[%clk 0:00:57]}  Bf6 {[%clk 0:01:51]} 18. Rad1 {[%clk 0:00:52]}  Rad8 {[%clk 0:01:44]} 19. Bc3 {[%clk 0:00:44]}  Rfe8 {[%clk 0:01:36]} 20. Nb5 {[%clk 0:00:17]}  Bxb5 {[%clk 0:01:34]} 21. Bxf6 {[%clk 0:00:17]}  gxf6 {[%clk 0:01:33]} 22. cxb5 {[%clk 0:00:18]}  Kg7 {[%clk 0:01:17]} 23. g3 {[%clk 0:00:17]}  Nb7 {[%clk 0:00:57]} 24. Bb1 {[%clk 0:00:14]}  Qc5 {[%clk 0:00:51]} 25. Nd4 {[%clk 0:00:09]}  Rc8 {[%clk 0:00:37]} 26. a4 {[%clk 0:00:08]}  Qh5 {[%clk 0:00:33]} 27. Nc6 {[%clk 0:00:06]}  Rc7 {[%clk 0:00:23]} 28. h4 {[%clk 0:00:06]}  Nc5 {[%clk 0:00:23]} 29. Qc3 {[%clk 0:00:06]}  a6 {[%clk 0:00:19]} 30. Rd4 {[%clk 0:00:04]}  axb5 {[%clk 0:00:19]} 31. axb5 {[%clk 0:00:05]}  Nd7 {[%clk 0:00:19]} 32. Qb4 {[%clk 0:00:04]}  Nde5 {[%clk 0:00:17]} 33. Rde4 {[%clk 0:00:01]}  Nxc6 {[%clk 0:00:16]} 34. bxc6 {[%clk 0:00:01]}  Rxc6 {[%clk 0:00:17]} 0-1


[Site "https://www.chess.com"]

[Event "Titled Tuesday Blitz March 21 Early 2023"]
[White "Sokac, Marko"]
[Black "Urazayev, Arystanbek"]
[WhiteFideId "14531356"]
[BlackFideId "13709810"]
[WhiteElo "2355"]
[BlackElo "2479"]
[Result "0-1"]
[Round "05"]
[TimeControl "180+2"]
[Date "2023.03.21"]
[WhiteClock "0:00:50"]
[BlackClock "0:00:26"]

1. e4 {[%clk 0:03:00]}  e5 {[%clk 0:02:59]} 2. Nc3 {[%clk 0:03:01]}  Nc6 {[%clk 0:02:59]} 3. Bc4 {[%clk 0:03:01]}  Nf6 {[%clk 0:02:50]} 4. d3 {[%clk 0:03:01]}  Bb4 {[%clk 0:02:50]} 5. Ne2 {[%clk 0:03:01]}  d5 {[%clk 0:02:49]} 6. exd5 {[%clk 0:03:01]}  Nxd5 {[%clk 0:02:50]} 7. O-O {[%clk 0:03:01]}  Be6 {[%clk 0:02:51]} 8. f4 {[%clk 0:02:57]}  Nxc3 {[%clk 0:02:47]} 9. bxc3 {[%clk 0:02:57]}  Bc5+ {[%clk 0:02:47]} 10. Kh1 {[%clk 0:02:48]}  Bxc4 {[%clk 0:02:47]} 11. dxc4 {[%clk 0:02:47]}  Qxd1 {[%clk 0:02:48]} 12. Rxd1 {[%clk 0:02:48]}  Rd8 {[%clk 0:02:32]} 13. Rd5 {[%clk 0:02:45]}  Bd6 {[%clk 0:02:22]} 14. fxe5 {[%clk 0:02:28]}  Bxe5 {[%clk 0:02:20]} 15. Ba3 {[%clk 0:02:28]}  f6 {[%clk 0:02:14]} 16. Rad1 {[%clk 0:02:27]}  Kf7 {[%clk 0:02:11]} 17. Nd4 {[%clk 0:02:25]}  Nxd4 {[%clk 0:01:23]} 18. cxd4 {[%clk 0:02:24]}  c6 {[%clk 0:01:22]} 19. Rxd8 {[%clk 0:02:17]}  Rxd8 {[%clk 0:01:23]} 20. c3 {[%clk 0:02:18]}  Bc7 {[%clk 0:01:19]} 21. g3 {[%clk 0:02:15]}  Re8 {[%clk 0:01:20]} 22. Rd2 {[%clk 0:02:14]}  Ke6 {[%clk 0:01:16]} 23. Kg2 {[%clk 0:02:07]}  Kd7 {[%clk 0:01:15]} 24. Kf3 {[%clk 0:02:06]}  Re1 {[%clk 0:01:13]} 25. Bf8 {[%clk 0:02:02]}  g6 {[%clk 0:01:11]} 26. Bg7 {[%clk 0:01:54]}  f5 {[%clk 0:01:02]} 27. d5 {[%clk 0:01:52]}  c5 {[%clk 0:01:00]} 28. d6 {[%clk 0:01:38]}  Bxd6 {[%clk 0:00:45]} 29. Bf8 {[%clk 0:01:36]}  Re6 {[%clk 0:00:45]} 30. Rxd6+ {[%clk 0:01:12]}  Rxd6 {[%clk 0:00:44]} 31. Bxd6 {[%clk 0:01:13]}  Kxd6 {[%clk 0:00:45]} 32. Kf4 {[%clk 0:01:13]}  h6 {[%clk 0:00:25]} 33. h3 {[%clk 0:00:58]}  Ke6 {[%clk 0:00:26]} 34. h4 {[%clk 0:00:51]}  Kf6 {[%clk 0:00:26]} 35. Kf3 {[%clk 0:00:49]}  g5 {[%clk 0:00:26]} 36. Ke3 {[%clk 0:00:49]}  Ke5 {[%clk 0:00:26]} 37. Kf3 {[%clk 0:00:49]}  gxh4 {[%clk 0:00:24]} 38. gxh4 {[%clk 0:00:49]}  h5 {[%clk 0:00:25]} 39. Ke3 {[%clk 0:00:49]}  f4+ {[%clk 0:00:25]} 40. Kf3 {[%clk 0:00:50]}  Kf5 {[%clk 0:00:26]} 0-1


[Site "https://www.chess.com"]

[Event "Titled Tuesday Blitz March 21 Early 2023"]
[White "Derjabin, Ilja"]
[Black "Mekhitarian, Krikor Sevag"]
[WhiteFideId "14104768"]
[BlackFideId "2107660"]
[WhiteElo "2309"]
[BlackElo "2604"]
[Result "0-1"]
[Round "05"]
[TimeControl "180+2"]
[Date "2023.03.21"]
[WhiteClock "0:00:04"]
[BlackClock "0:00:17"]

1. d4 {[%clk 0:03:00]}  Nf6 {[%clk 0:02:59]} 2. c4 {[%clk 0:03:00]}  g6 {[%clk 0:02:59]} 3. Nc3 {[%clk 0:03:00]}  d5 {[%clk 0:03:00]} 4. Bg5 {[%clk 0:03:00]}  Bg7 {[%clk 0:02:58]} 5. Nf3 {[%clk 0:02:59]}  dxc4 {[%clk 0:02:58]} 6. e3 {[%clk 0:02:58]}  Be6 {[%clk 0:02:55]} 7. Ne5 {[%clk 0:02:46]}  Nd5 {[%clk 0:02:48]} 8. Nxc4 {[%clk 0:01:55]}  c5 {[%clk 0:02:47]} 9. Qb3 {[%clk 0:01:23]}  Nxc3 {[%clk 0:01:48]} 10. bxc3 {[%clk 0:01:20]}  Qc8 {[%clk 0:01:31]} 11. Qa3 {[%clk 0:00:49]}  Nd7 {[%clk 0:01:13]} 12. Rd1 {[%clk 0:00:48]}  h6 {[%clk 0:01:12]} 13. d5 {[%clk 0:00:33]}  Bf5 {[%clk 0:01:07]} 14. Bh4 {[%clk 0:00:27]}  g5 {[%clk 0:01:04]} 15. Bg3 {[%clk 0:00:28]}  O-O {[%clk 0:01:05]} 16. h4 {[%clk 0:00:27]}  g4 {[%clk 0:00:58]} 17. Bd3 {[%clk 0:00:24]}  Nf6 {[%clk 0:00:58]} 18. d6 {[%clk 0:00:21]}  Bxd3 {[%clk 0:00:48]} 19. Rxd3 {[%clk 0:00:21]}  Qf5 {[%clk 0:00:48]} 20. Rd1 {[%clk 0:00:19]}  Ne4 {[%clk 0:00:36]} 21. dxe7 {[%clk 0:00:13]}  Bxc3+ {[%clk 0:00:32]} 22. Ke2 {[%clk 0:00:14]}  Rfe8 {[%clk 0:00:33]} 23. Nd6 {[%clk 0:00:12]}  Nxg3+ {[%clk 0:00:27]} 24. fxg3 {[%clk 0:00:04]}  Qc2+ {[%clk 0:00:28]} 25. Kf1 {[%clk 0:00:04]}  Qxd1+ {[%clk 0:00:27]} 26. Kf2 {[%clk 0:00:05]}  Qd2+ {[%clk 0:00:23]} 27. Kg1 {[%clk 0:00:04]}  Qxd6 {[%clk 0:00:17]} 0-1


[Site "https://www.chess.com"]

[Event "Titled Tuesday Blitz March 21 Early 2023"]
[White "Kuzmin, Roman"]
[Black "Flores, Diego"]
[WhiteFideId "44134932"]
[BlackFideId "108049"]
[WhiteElo "2146"]
[BlackElo "2606"]
[Result "0-1"]
[Round "05"]
[TimeControl "180+2"]
[Date "2023.03.21"]
[WhiteClock "0:02:01"]
[BlackClock "0:01:23"]

1. e4 {[%clk 0:03:00]}  c5 {[%clk 0:02:58]} 2. Nf3 {[%clk 0:03:00]}  e6 {[%clk 0:02:56]} 3. d4 {[%clk 0:03:01]}  cxd4 {[%clk 0:02:57]} 4. Nxd4 {[%clk 0:03:02]}  a6 {[%clk 0:02:57]} 5. Bd3 {[%clk 0:03:01]}  Bc5 {[%clk 0:02:57]} 6. Nb3 {[%clk 0:03:00]}  Be7 {[%clk 0:02:57]} 7. Qg4 {[%clk 0:02:58]}  g6 {[%clk 0:02:58]} 8. Qe2 {[%clk 0:02:58]}  d6 {[%clk 0:02:58]} 9. O-O {[%clk 0:02:58]}  Nd7 {[%clk 0:02:58]} 10. a4 {[%clk 0:02:56]}  Ne5 {[%clk 0:02:52]} 11. f4 {[%clk 0:02:51]}  Nxd3 {[%clk 0:02:51]} 12. Qxd3 {[%clk 0:02:48]}  Nf6 {[%clk 0:02:51]} 13. Be3 {[%clk 0:02:46]}  O-O {[%clk 0:02:49]} 14. a5 {[%clk 0:02:45]}  Bd7 {[%clk 0:02:48]} 15. N1d2 {[%clk 0:02:43]}  Bc6 {[%clk 0:02:45]} 16. Rae1 {[%clk 0:02:38]}  Rc8 {[%clk 0:02:18]} 17. f5 {[%clk 0:02:37]}  gxf5 {[%clk 0:02:12]} 18. exf5 {[%clk 0:02:36]}  e5 {[%clk 0:02:12]} 19. Bh6 {[%clk 0:02:36]}  Kh8 {[%clk 0:02:12]} 20. Bxf8 {[%clk 0:02:31]}  Qxf8 {[%clk 0:02:13]} 21. Re3 {[%clk 0:02:23]}  Nh5 {[%clk 0:01:39]} 22. Rh3 {[%clk 0:02:15]}  Qg7 {[%clk 0:01:35]} 23. g3 {[%clk 0:02:03]}  Qg4 {[%clk 0:01:24]} 24. Rh4 {[%clk 0:02:01]}  Bxh4 {[%clk 0:01:23]} 0-1


[Site "https://www.chess.com"]

[Event "Titled Tuesday Blitz March 21 Early 2023"]
[White "Carlsen, Magnus"]
[Black "Klepikov, Nikita"]
[WhiteFideId "1503014"]
[BlackFideId "24145220"]
[WhiteElo "2852"]
[BlackElo "2025"]
[Result "1-0"]
[Round "05"]
[TimeControl "180+2"]
[Date "2023.03.21"]
[WhiteClock "0:02:02"]
[BlackClock "0:00:14"]

1. c4 {[%clk 0:03:00]}  e5 {[%clk 0:02:59]} 2. g3 {[%clk 0:03:00]}  Nf6 {[%clk 0:02:58]} 3. Bg2 {[%clk 0:02:59]}  Nc6 {[%clk 0:02:59]} 4. Nc3 {[%clk 0:02:56]}  Bc5 {[%clk 0:02:57]} 5. e3 {[%clk 0:02:51]}  d5 {[%clk 0:02:56]} 6. cxd5 {[%clk 0:02:51]}  Nb4 {[%clk 0:02:57]} 7. d3 {[%clk 0:02:42]}  Nbxd5 {[%clk 0:02:41]} 8. Nxd5 {[%clk 0:02:41]}  Nxd5 {[%clk 0:02:41]} 9. Nf3 {[%clk 0:02:41]}  Bg4 {[%clk 0:01:36]} 10. Qa4+ {[%clk 0:02:36]}  Bd7 {[%clk 0:01:24]} 11. Qc4 {[%clk 0:02:32]}  Bb4+ {[%clk 0:00:51]} 12. Bd2 {[%clk 0:02:23]}  Bxd2+ {[%clk 0:00:44]} 13. Nxd2 {[%clk 0:02:24]}  Bc6 {[%clk 0:00:34]} 14. O-O {[%clk 0:02:11]}  O-O {[%clk 0:00:33]} 15. Rac1 {[%clk 0:02:04]}  Nb6 {[%clk 0:00:29]} 16. Qb3 {[%clk 0:02:04]}  Bxg2 {[%clk 0:00:29]} 17. Kxg2 {[%clk 0:02:05]}  c6 {[%clk 0:00:25]} 18. Nf3 {[%clk 0:02:04]}  Qd6 {[%clk 0:00:23]} 19. a4 {[%clk 0:02:04]}  a5 {[%clk 0:00:14]} 20. Qxb6 {[%clk 0:02:02]} 1-0


[Site "https://www.chess.com"]